{"text_format":"1","workbook":"xlsx","n_sheets":1,"sheets":["Sheet1"],"not_rendered":{"charts":0,"images":37,"macros":1,"external_links":0,"defined_names":1,"comments":0,"pivot_tables":0},"unopened":[],"bounds":{"document_bytes":16777216,"sheet_cells":100000,"rows_first":2000,"rows_last":500,"rows_between":2000,"halvings":0,"cell_chars":16384,"cell_head_chars":4096},"cells_cut":0,"cells_raw":0,"read":"whole","date_system":"1900"}

{"sheet":"Sheet1","index":0,"n_rows":475,"n_cols":44,"rows_kept":475,"cut":false,"hidden":false,"merged":[[387,2,391,19],[366,2,370,8],[377,42,379,42],[474,13,478,39],[469,13,473,39],[465,13,468,39],[337,43,339,43],[129,1,133,11],[129,12,133,25],[129,26,133,39],[134,1,156,11],[134,17,138,25],[139,17,143,25],[144,31,156,39],[139,31,143,39],[134,31,138,39],[144,17,156,25],[159,0,161,27],[185,0,187,27],[454,26,458,31],[451,26,453,31],[454,34,458,39],[451,34,453,39],[346,9,350,33],[366,9,370,33],[371,9,375,33],[376,9,380,33],[372,41,374,41],[372,42,374,42],[382,41,384,41],[382,42,384,42],[371,2,375,8],[376,2,380,8],[381,2,385,8],[367,41,369,41],[407,9,411,33],[408,36,410,39],[446,0,450,19],[407,2,411,8],[451,2,453,7],[413,36,415,39],[397,9,401,33],[402,2,406,8],[403,36,405,39],[402,9,406,33],[342,42,344,42],[352,36,354,39],[357,36,359,39],[362,36,364,39],[367,36,369,39],[372,36,374,39],[367,42,369,42],[337,41,339,41],[337,42,339,42],[342,41,344,41],[347,36,349,39],[347,41,349,41],[347,42,349,42],[342,36,344,39],[341,2,345,8],[337,36,339,39],[336,2,340,8],[336,9,340,33],[474,2,478,5],[430,36,432,39],[419,36,421,39],[356,9,360,33],[393,1,396,19],[397,2,401,8],[377,36,379,39],[361,2,365,8],[351,2,355,8],[356,2,360,8],[346,2,350,8],[361,9,365,33],[381,9,385,33],[382,36,384,39],[388,36,390,39],[398,36,400,39],[454,8,458,9],[454,16,458,17],[454,24,458,25],[469,6,473,12],[0,0,0,40],[6,1,10,7],[11,1,15,7],[16,1,20,7],[21,1,25,7],[26,1,30,7],[1,0,5,7],[42,0,46,27],[36,1,40,7],[31,1,35,7],[16,8,20,39],[11,8,15,39],[6,8,10,39],[21,23,25,24],[22,18,24,22],[26,23,30,24],[27,18,29,22],[31,14,35,15],[31,21,35,22],[32,16,34,20],[32,9,34,13],[36,14,40,15],[36,21,40,22],[37,9,39,13],[465,6,468,12],[474,6,478,12],[441,36,443,39],[412,9,416,33],[418,2,422,19],[424,1,428,19],[429,2,433,8],[435,1,439,19],[440,2,444,8],[429,9,433,33],[440,9,444,33],[412,2,416,8],[460,0,464,19],[454,2,458,7],[451,10,453,15],[454,10,458,15],[454,18,458,23],[451,18,453,23],[465,2,468,5],[469,2,473,5],[454,32,458,33],[367,43,369,43],[351,9,355,33],[196,3,200,5],[47,21,51,39],[52,1,56,20],[57,1,61,20],[62,1,66,20],[67,1,71,20],[72,1,76,20],[77,1,81,20],[47,1,51,20],[182,0,184,40],[162,1,179,39],[72,32,74,36],[75,32,77,33],[75,34,77,36],[83,0,87,27],[88,1,97,4],[98,1,113,4],[116,1,118,3],[188,26,191,39],[188,1,191,25],[203,28,206,30],[341,9,345,33],[372,43,374,43],[377,41,379,41],[278,6,281,25],[377,43,379,43],[124,0,128,13],[347,43,349,43],[352,41,354,41],[352,42,354,42],[352,43,354,43],[357,41,359,41],[357,42,359,42],[357,43,359,43],[331,1,335,18],[139,26,143,30],[144,12,156,16],[144,26,156,30],[139,12,143,16],[134,12,138,16],[134,26,138,30],[328,0,330,27],[268,1,271,25],[362,41,364,41],[362,42,364,42],[362,43,364,43],[382,43,384,43],[441,43,443,43],[430,41,432,41],[430,42,432,42],[430,43,432,43],[398,41,400,41],[398,42,400,42],[403,41,405,41],[403,42,405,42],[408,41,410,41],[408,42,410,42],[413,41,415,41],[413,42,415,42],[441,41,443,41],[441,42,443,42],[321,1,326,25],[220,28,225,30],[239,3,247,5],[248,3,253,5],[254,1,259,25],[262,0,264,40],[265,0,267,27],[302,3,308,5],[287,3,301,5],[315,3,320,5],[309,3,314,5],[218,3,223,5],[224,3,232,5],[233,3,238,5],[2,35,3,39],[99,10,103,38],[106,10,112,38],[94,11,96,38],[95,39,97,39],[117,4,121,39],[277,3,281,5],[282,3,286,5],[268,26,271,39],[201,3,206,5],[207,3,212,5],[213,3,217,5],[21,32,25,33],[26,32,30,33],[27,27,29,31],[22,27,24,31]]}
["既存ブロック塀等現況調査結果書"]
["１　一般事項"]
[null,null,null,null,null,null,null,null,null,null,null,null,null,null,null,null,null,null,null,null,null,null,null,null,null,null,null,null,null,null,null,null,null,null,null,20210114]
[]
[]
[]
[null,"所 在 地"]
[]
[]
[]
[]
[null,"申請者氏名"]
[]
[]
[]
[]
[null,"調査者氏名"]
[]
[]
[]
[]
[null,"塀の建設年",null,null,null,null,null,null,null,null,null,null,null,null,null,null,null,null,null,null,null,null,null,null,null,null,null,null,null,null,null,null,"年頃"]
[]
[]
[]
[]
[null,"塀の増改築履歴",null,null,null,null,null,null,null,null,null,null,null,null,null,null,null,null,null,null,null,null,null,null,null,null,null,null,null,null,null,null,"年頃"]
[]
[]
[]
[]
[null,"塀の高さ（最高）",null,null,null,null,null,null,"　　　　　　　　　ｍ　　　　　　　　段",null,null,null,null,null,"m",null,null,null,null,null,null,"段"]
[]
[]
[]
[]
[null,"塀の長さ",null,null,null,null,null,null,"　　　　　　　　　ｍ　　　　　　　　段",null,null,null,null,null,"m"]
[]
[]
[]
[]
[]
["２　基準への適合確認【確認等実施要領４-(1)】"]
[]
[]
[]
[]
[null,"塀の種類",null,null,null,null,null,null,null,null,null,null,null,null,null,null,null,null,null,null,null,"適合状況"]
[]
[]
[]
[]
[]
[]
[]
[]
[]
[null,"　　（建築基準法施行令第62条の８，第62条の６）"]
[]
[]
[]
[]
[]
[]
[]
[]
[]
[null,"　　（建築基準法施行令第61条，第52条）"]
[]
[]
[]
[]
[null,null,null,null,null,null,null,null,null,null,null,null,null,null,null,null,null,null,null,null,null,null,null,null,null,null,null,null,null,null,null,null,"総合評点"]
[]
[]
[null,null,null,null,null,null,null,null,null,null,null,null,null,null,null,null,null,null,null,null,null,null,null,null,null,null,null,null,null,null,null,null,"Q=",null,{"$f":"AI455","v":157.5}]
[]
[]
[]
[]
[]
[]
[]
["３　改善計画（法不適合，２項道路後退線内の場合）"]
[]
[]
[]
[]
[null,"改善時期"]
[]
[]
[]
[]
[]
[]
[null,null,null,null,null,null,null,null,null,null,null,null,null,null,null,null,null,null,null,null,null,null,null,null,null,null,null,null,null,null,null,null,null,null,null,null,null,null,null,"）"]
[]
[]
[null,"改善方法"]
[]
[]
[]
[]
[]
[]
[]
[]
[]
[]
[]
[]
[]
[]
[]
[]
[]
[null,"（備考）"]
[]
[]
[]
[]
[]
[]
[]
["※指定確認検査機関記入欄"]
[]
[]
[]
[]
[null,"受付印",null,null,null,null,null,null,null,null,null,null,"建築確認申請",null,null,null,null,null,null,null,null,null,null,null,null,null,"完了検査申請"]
[]
[]
[]
[]
[null,null,null,null,null,null,null,null,null,null,null,null,"済証番号",null,null,null,null,null,null,null,null,null,null,null,null,null,"済証番号"]
[]
[]
[]
[]
[null,null,null,null,null,null,null,null,null,null,null,null,"済証年月日",null,null,null,null,null,null,null,null,null,null,null,null,null,"済証年月日"]
[]
[]
[]
[]
[null,null,null,null,null,null,null,null,null,null,null,null,"添付図書",null,null,null,null,null,null,null,null,null,null,null,null,null,"備考"]
[]
[]
[]
[]
[]
[]
[]
[]
[]
[]
[]
[]
[]
[]
["４　基準への適合確認【確認等実施要領４-(1)-①②③】"]
[]
[]
[null,"　①補強コンクリートブロック造の塀又は②組積造の塀のいずれかで法適合確認を行う\n　　●現行基準欄又は構造計算確認欄にチェックあり → 「現行基準に適合」【確認等実施要領４-(1)-①】\n　　●既存不適格欄のいずれかにチェックあり\n　　　　→　「既存不適格」【確認等実施要領４-(1)-②】　→　「５　倒壊の危険性の確認」　へ\n　　●上記以外　→　「法不適合」【確認等実施要領４-(1)-③】"]
[]
[]
[]
[]
[]
[]
[]
[]
[]
[]
[]
[]
[]
[]
[]
[]
[]
[]
[]
[" ①補強コンクリートブロック造の塀"]
[]
[]
["　●建築基準法施行令62条の８、62条の６"]
[]
[]
[null,"現行基準",null,null,null,null,null,null,null,null,null,null,null,null,null,null,null,null,null,null,null,null,null,null,null,null,"既存不適格"]
[]
[]
[]
[]
[]
[]
[]
[null,null,null,"令62条の８\n第１号"]
[]
[]
[]
[]
[null,null,null,"令62条の８\n第２号"]
[]
[]
[]
[]
[]
[null,null,null,"令62条の８\n第３号"]
[]
[]
[]
[]
[]
[null,null,null,"令62条の８\n第４号"]
[]
[]
[]
[]
[null,null,null,"令62条の８\n第５号"]
[]
[]
[]
[]
[]
[null,null,null,"令62条の８\n第６号"]
[]
[]
[]
[]
[]
[]
[]
[]
[null,null,null,"令62条の８\n第７号"]
[]
[]
[]
[]
[]
[null,null,null,"令62条の６\n第１項"]
[]
[]
[]
[]
[]
[]
[]
[]
[null,null,null,"令62条の６\n第２項"]
[]
[]
[]
[]
[]
[]
[]
[]
[]
[]
[]
[]
[]
[" ②組積造の塀"]
[]
[]
["　●建築基準法施行令61条、52条"]
[]
[]
[null,"現行基準",null,null,null,null,null,null,null,null,null,null,null,null,null,null,null,null,null,null,null,null,null,null,null,null,"既存不適格"]
[]
[]
[]
[]
[]
[]
[]
[]
[null,null,null,"令61条\n第１号"]
[]
[]
[]
[]
[null,null,null,"令61条\n第２号"]
[]
[]
[]
[]
[null,null,null,"令61条\n第３号"]
[]
[]
[]
[]
[]
[]
[]
[]
[]
[]
[]
[]
[]
[]
[null,null,null,"令61条\n第４号"]
[]
[]
[]
[]
[]
[]
[null,null,null,"令52条\n第２項"]
[]
[]
[]
[]
[]
[null,null,null,"令52条\n第４項"]
[]
[]
[]
[]
[]
[]
[]
[]
[]
[]
[]
[]
["５　倒壊の危険性の確認"]
[]
[]
[null,"Ａ．基本性能の診断〔基本性能値〕"]
[]
[]
[]
[]
[null,null,"建築後の年数"]
[null,null,null,null,null,null,null,null,null,null,null,null,null,null,null,null,null,null,null,null,null,null,null,null,null,null,null,null,null,null,null,null,null,null,null,null,{"$f":"IF(AP338=TRUE,10,IF(AQ338=TRUE,8,IF(AR338=TRUE,5,\"\")))","v":10},null,null,null,null,true,false,false]
[]
[]
[]
[null,null,"高さの増積み"]
[null,null,null,null,null,null,null,null,null,null,null,null,null,null,null,null,null,null,null,null,null,null,null,null,null,null,null,null,null,null,null,null,null,null,null,null,{"$f":"IF(AP343=TRUE,10,IF(AQ343=TRUE,0))","v":10},null,null,null,null,true,false]
[]
[]
[]
[null,null,"使用状況",null,null,null,null,null,null,null,null,null,null,null,null,null,null,null,null,null,null,null,null,null,null,null,null,null,null,null,null,null,null,null,null,null,{"$f":"IF(AP347=TRUE,10,IF(AQ347=TRUE,8,IF(AR347=TRUE,5,\"\")))","v":""}]
[null,null,null,null,null,null,null,null,null,null,null,null,null,null,null,null,null,null,null,null,null,null,null,null,null,null,null,null,null,null,null,null,null,null,null,null,{"$f":"IF(AP348=TRUE,10,IF(AQ348=TRUE,0))","v":10},null,null,null,null,true,false]
[]
[]
[]
[null,null,"塀の位置",null,null,null,null,null,null,null,null,null,null,null,null,null,null,null,null,null,null,null,null,null,null,null,null,null,null,null,null,null,null,null,null,null,{"$f":"IF(AP352=TRUE,10,IF(AQ352=TRUE,8,IF(AR352=TRUE,5,\"\")))","v":""}]
[null,null,null,null,null,null,null,null,null,null,null,null,null,null,null,null,null,null,null,null,null,null,null,null,null,null,null,null,null,null,null,null,null,null,null,null,{"$f":"IF(AP353=TRUE,10,IF(AQ353=TRUE,5))","v":10},null,null,null,null,true,false]
[]
[]
[]
[null,null,"塀の高さ",null,null,null,null,null,null,null,null,null,null,null,null,null,null,null,null,null,null,null,null,null,null,null,null,null,null,null,null,null,null,null,null,null,{"$f":"IF(AP357=TRUE,10,IF(AQ357=TRUE,8,IF(AR357=TRUE,5,\"\")))","v":""}]
[null,null,null,null,null,null,null,null,null,null,null,null,null,null,null,null,null,null,null,null,null,null,null,null,null,null,null,null,null,null,null,null,null,null,null,null,{"$f":"IF(AP358=TRUE,15,IF(AQ358=TRUE,10,IF(AR358=TRUE,0,\"\")))","v":15},null,null,null,null,true,false,false]
[]
[]
[]
[null,null,"塀の厚さ",null,null,null,null,null,null,null,null,null,null,null,null,null,null,null,null,null,null,null,null,null,null,null,null,null,null,null,null,null,null,null,null,null,{"$f":"IF(AP362=TRUE,10,IF(AQ362=TRUE,8,IF(AR362=TRUE,5,\"\")))","v":""}]
[null,null,null,null,null,null,null,null,null,null,null,null,null,null,null,null,null,null,null,null,null,null,null,null,null,null,null,null,null,null,null,null,null,null,null,null,{"$f":"IF(AP363=TRUE,10,IF(AQ363=TRUE,8,IF(AR363=TRUE,5,\"\")))","v":10},null,null,null,null,true,false,false]
[]
[]
[]
[null,null,"透かしブロック",null,null,null,null,null,null,null,null,null,null,null,null,null,null,null,null,null,null,null,null,null,null,null,null,null,null,null,null,null,null,null,null,null,{"$f":"IF(AP367=TRUE,10,IF(AQ367=TRUE,8,IF(AR367=TRUE,5,\"\")))","v":""}]
[null,null,null,null,null,null,null,null,null,null,null,null,null,null,null,null,null,null,null,null,null,null,null,null,null,null,null,null,null,null,null,null,null,null,null,null,{"$f":"IF(AP368=TRUE,10,IF(AQ368=TRUE,5))","v":10},null,null,null,null,true,false]
[]
[]
[]
[null,null,"鉄筋",null,null,null,null,null,null,null,null,null,null,null,null,null,null,null,null,null,null,null,null,null,null,null,null,null,null,null,null,null,null,null,null,null,{"$f":"IF(AP372=TRUE,10,IF(AQ372=TRUE,8,IF(AR372=TRUE,5,\"\")))","v":""}]
[null,null,null,null,null,null,null,null,null,null,null,null,null,null,null,null,null,null,null,null,null,null,null,null,null,null,null,null,null,null,null,null,null,null,null,null,{"$f":"IF(AP373=TRUE,10,IF(AQ373=TRUE,0,IF(AR373=TRUE,0,\"\")))","v":10},null,null,null,null,true,false,false]
[]
[]
[]
[null,null,"控え壁・控え柱",null,null,null,null,null,null,null,null,null,null,null,null,null,null,null,null,null,null,null,null,null,null,null,null,null,null,null,null,null,null,null,null,null,{"$f":"IF(AP377=TRUE,10,IF(AQ377=TRUE,8,IF(AR377=TRUE,5,\"\")))","v":""}]
[null,null,null,null,null,null,null,null,null,null,null,null,null,null,null,null,null,null,null,null,null,null,null,null,null,null,null,null,null,null,null,null,null,null,null,null,{"$f":"IF(AP378=TRUE,10,IF(AQ378=TRUE,5))","v":10},null,null,null,null,true,false]
[]
[]
[]
[null,null,"かさ木",null,null,null,null,null,null,null,null,null,null,null,null,null,null,null,null,null,null,null,null,null,null,null,null,null,null,null,null,null,null,null,null,null,{"$f":"IF(AP382=TRUE,10,IF(AQ382=TRUE,8,IF(AR382=TRUE,5,\"\")))","v":""}]
[null,null,null,null,null,null,null,null,null,null,null,null,null,null,null,null,null,null,null,null,null,null,null,null,null,null,null,null,null,null,null,null,null,null,null,null,{"$f":"IF(AP383=TRUE,10,IF(AQ383=TRUE,5))","v":10},null,null,null,null,true,false]
[]
[]
[]
[]
[null,null,"基本性能値（①～⑩までの評価点の合計）"]
[null,null,null,null,null,null,null,null,null,null,null,null,null,null,null,null,null,null,null,null,null,null,null,null,null,null,null,null,null,null,null,null,null,null,null,null,{"$f":"SUM(AK338:AN385)","v":105}]
[]
[]
[]
[]
[null,"Ｂ．壁体の外観診断〔外観係数〕"]
[]
[]
[]
[null,null,"全体の傾き"]
[null,null,null,null,null,null,null,null,null,null,null,null,null,null,null,null,null,null,null,null,null,null,null,null,null,null,null,null,null,null,null,null,null,null,null,null,{"$f":"IF(AP399=TRUE,0.7,IF(AQ399=TRUE,1))","v":1},null,null,null,null,false,true]
[]
[]
[]
[null,null,"ひび割れ",null,null,null,null,null,null,null,null,null,null,null,null,null,null,null,null,null,null,null,null,null,null,null,null,null,null,null,null,null,null,null,null,null,{"$f":"IF(AP403=TRUE,10,IF(AQ403=TRUE,8,IF(AR403=TRUE,5,\"\")))","v":""}]
[null,null,null,null,null,null,null,null,null,null,null,null,null,null,null,null,null,null,null,null,null,null,null,null,null,null,null,null,null,null,null,null,null,null,null,null,{"$f":"IF(AP404=TRUE,0.7,IF(AQ404=TRUE,1))","v":1},null,null,null,null,false,true]
[]
[]
[]
[null,null,"損傷",null,null,null,null,null,null,null,null,null,null,null,null,null,null,null,null,null,null,null,null,null,null,null,null,null,null,null,null,null,null,null,null,null,{"$f":"IF(AP408=TRUE,10,IF(AQ408=TRUE,8,IF(AR408=TRUE,5,\"\")))","v":""}]
[null,null,null,null,null,null,null,null,null,null,null,null,null,null,null,null,null,null,null,null,null,null,null,null,null,null,null,null,null,null,null,null,null,null,null,null,{"$f":"IF(AP409=TRUE,0.7,IF(AQ409=TRUE,1))","v":1},null,null,null,null,false,true]
[]
[]
[]
[null,null,"著しい汚れ",null,null,null,null,null,null,null,null,null,null,null,null,null,null,null,null,null,null,null,null,null,null,null,null,null,null,null,null,null,null,null,null,null,{"$f":"IF(AP413=TRUE,10,IF(AQ413=TRUE,8,IF(AR413=TRUE,5,\"\")))","v":""}]
[null,null,null,null,null,null,null,null,null,null,null,null,null,null,null,null,null,null,null,null,null,null,null,null,null,null,null,null,null,null,null,null,null,null,null,null,{"$f":"IF(AP414=TRUE,0.7,IF(AQ414=TRUE,1))","v":1},null,null,null,null,false,true]
[]
[]
[]
[]
[null,null," 外観係数（⑪～⑭の最小値）"]
[null,null,null,null,null,null,null,null,null,null,null,null,null,null,null,null,null,null,null,null,null,null,null,null,null,null,null,null,null,null,null,null,null,null,null,null,{"$f":"MIN(AK399:AN416)","v":1}]
[]
[]
[]
[]
[null,"Ｃ．壁体の耐力診断〔耐力係数〕"]
[]
[]
[]
[]
[null,null,"ぐらつき"]
[null,null,null,null,null,null,null,null,null,null,null,null,null,null,null,null,null,null,null,null,null,null,null,null,null,null,null,null,null,null,null,null,null,null,null,null,{"$f":"IF(AP431=TRUE,1,IF(AQ431=TRUE,0.8,IF(AR431=TRUE,0.5,\"\")))","v":1},null,null,null,null,true,false,false]
[]
[]
[]
[]
[null,"Ｄ．保全状況の診断〔保全係数〕"]
[]
[]
[]
[]
[null,null,"補強・転倒防止\n対策等の有無"]
[null,null,null,null,null,null,null,null,null,null,null,null,null,null,null,null,null,null,null,null,null,null,null,null,null,null,null,null,null,null,null,null,null,null,null,null,{"$f":"IF(AP442=TRUE,1.5,IF(AQ442=TRUE,1))","v":1.5},null,null,null,null,true,false]
[]
[]
[]
[]
["　●総合評点"]
[]
[]
[]
[]
[null,null,"基本性能値 (A)",null,null,null,null,null,null,null,"外観係数 (B)",null,null,null,null,null,null,null,"耐力係数 (C)",null,null,null,null,null,null,null,"保全係数 (D)",null,null,null,null,null,null,null,"総合評点 (Q)"]
[]
[]
[null,null,{"$f":"AK389","v":105},null,null,null,null,null,"×",null,{"$f":"AK420","v":1},null,null,null,null,null,"×",null,{"$f":"AK431","v":1},null,null,null,null,null,"×",null,{"$f":"AK442","v":1.5},null,null,null,null,null,"＝",null,{"$f":"ROUND(C455*K455*S455*AA455,1)","v":157.5}]
[]
[]
[]
[]
[]
["　●総合評点結果の判定"]
[]
[]
[]
[]
[null,null,"チェック",null,null,null,"総合評点",null,null,null,null,null,null,"判　定"]
[]
[]
[]
[null,null,null,null,null,null,"40≦Ｑ",null,null,null,null,null,null,"倒壊の危険性が低い"]
[]
[]
[]
[]
[null,null,null,null,null,null,"Ｑ＜40",null,null,null,null,null,null,"倒壊の危険性が高い"]